fUSD/lending_fUSD_20240709
["ID","MTS","AMOUNT","RATE_DAILY","PERIOD"]
[331549994,1720487438546,-332.5,0.00014,2]
[331549995,1720487438557,-3038.4,0.00014,2]
[331549996,1720487438569,-13725.33117693,0.00014,2]
[331549997,1720487438580,-10778.88031143,0.00014,2]
[331549998,1720487438593,-585.41820824,0.00014,2]
[331549999,1720487438605,-17903.72219593,0.00014,2]
[331550000,1720487440302,-265.1286,0.00014,2]
[331550001,1720487440315,-269.10749852,0.00014,2]
[331550002,1720487440333,-403.47012699,0.00014,2]
[331550003,1720487440345,-340.014,0.00014,2]
[331550004,1720487440357,-1192.0,0.00014,2]
[331550005,1720487440369,-66346.02917856,0.00014,2]
[331550006,1720487440446,-222613.45660476,0.00014,2]
[331550007,1720487440458,-851331.16991955,0.00014,2]
[331550008,1720487440469,-15591.45045805,0.00014,2]
[331550009,1720487440481,-325.71792035,0.00014,2]
[331550010,1720487440493,-494.70983723,0.00014,2]
[331550011,1720487440509,-1707.201,0.00014,2]
[331550012,1720487440521,-910.50499999,0.00014,2]
[331550013,1720487440532,-500.0,0.00014,2]
[331550014,1720487440548,-9233.82497049,0.00014,2]
[331550015,1720487440560,-1852.95989709,0.00014,2]
[331550016,1720487440642,-5563.31850479,0.00014,2]
[331550017,1720487440654,-47517.9920305,0.00014,2]
[331550018,1720487440665,-177864.30631538,0.00014,2]
[331550019,1720487440676,-1009.93846996,0.00014,2]
[331550020,1720487440688,-413.7332465,0.00014,2]
[331550021,1720487440698,-1058.18044309,0.00014,2]
[331550122,1720487443238,-277.85339354,0.000139,2]
[331550123,1720487443248,-1096.10986208,0.000139,2]
[331550124,1720487443259,-4725.91554276,0.00014,2]
[331550125,1720487443271,-9035.707166,0.00014,2]
[331550126,1720487443283,-2310.11054467,0.00014,2]
[331550127,1720487443338,-261.4769987,0.00014,2]
[331550128,1720487443350,-9720.57122128,0.00014,2]
[331550129,1720487443363,-3977.57470231,0.00014,2]
[331550130,1720487443375,-3291.55431609,0.00014,2]
[331550131,1720487443439,-19437.75170967,0.00014,2]
[331550132,1720487443965,-258.62638244,0.00014,2]
[331550133,1720487443980,-397.00005046,0.00014,2]
[331550134,1720487443993,-365.0,0.00014,2]
[331550135,1720487444010,-596.89129703,0.00014,2]
[331550136,1720487444022,-461.30189036,0.00014,2]
[331550137,1720487444032,-1200.25651494,0.00014,2]
[331550159,1720487446302,-949.65,0.00014,2]
[331550160,1720487446321,-565.134902,0.00014,2]
[331550161,1720487446333,-417.96468455,0.00014,2]
[331550162,1720487446345,-5758.26630939,0.00014,2]
[331550163,1720487446433,-5322.75488516,0.00014,2]
[331550164,1720487446445,-2066.50353201,0.00014,2]
[331550165,1720487446457,-2103.96619709,0.00014,2]
[331550166,1720487446468,-4803.45941549,0.00014,2]
[331550167,1720487446483,-51860.20552712,0.00014,2]
[331550168,1720487446500,-251.7239712,0.00014,2]
[331550169,1720487446514,-2871.0340909,0.00014,2]
[331550170,1720487446531,-349.999995,0.00014,2]
[331550171,1720487446570,-1323.72452143,0.00014,2]
[331550172,1720487446582,-8259.64506002,0.00014,2]
[331550173,1720487446594,-16851.56,0.00014,2]
[331550174,1720487446605,-255.38347815,0.00014,2]
[331550175,1720487446618,-9354.42555467,0.00014,2]
[331550176,1720487446630,-31510.8173826,0.00014,2]
[331550177,1720487446641,-264.208,0.00014,2]
[331550178,1720487446653,-459.4508895,0.00014,2]
[331550179,1720487446676,-432.05266282,0.00014,2]
[331550204,1720487660343,2854.07101433,0.00011199,2]
[331550206,1720487721438,261.84919482,0.00011199,2]
[331550207,1720487734186,1284.2871572,0.00011199,2]
[331550208,1720487761668,380.929095,0.00026798,88]
[331550211,1720487863998,310.0,0.00011199,2]
[331550220,1720487977317,155.0,0.00011199,2]
[331550222,1720488119374,1282.21774417,0.00011199,2]
[331550223,1720488121557,3028.33426866,0.00011199,2]
[331550224,1720488142278,15433.33883135,0.00011199,2]
[331550227,1720488193104,5386.28050123,0.00011199,2]
[331550228,1720488197561,413.27406791,0.00011199,2]
[331550229,1720488206284,158.49361108,0.00011199,2]
[331550233,1720488265532,437.69795218,0.00011199,2]
[331550234,1720488269350,295.17787583,0.00011199,2]
[331550235,1720488401251,721.72385992,0.00011199,2]
[331550237,1720488431234,721.72385992,0.00011199,2]
[331550238,1720488441151,2272.27912863,0.00011199,2]
[331550239,1720488476341,193.8739488,0.00011199,2]
[331550240,1720488487732,888.96784191,0.00011199,2]
[331550241,1720488535069,579.36,0.00010858,2]
[331550242,1720488544185,155.0,0.00011199,2]
[331550243,1720488547447,957.05098293,0.00011199,2]
[331550253,1720488632445,-173.3514,0.00011248,2]
[331550254,1720488632456,-171.75370986,0.00012173,2]
[331550255,1720488632466,-283.94137394,0.00012273,2]
[331550256,1720488632479,-475.03193144,0.00012314,2]
[331550257,1720488632488,-163.28,0.00012697,2]
[331550258,1720488632497,-994.897214,0.00012758,2]
[331550259,1720488632769,-857.522786,0.00012758,2]
[331550260,1720488632780,-250.0,0.00012865,2]
[331550261,1720488632791,-300.0,0.00012945,2]
[331550263,1720488632801,-1375.76361511,0.00012946,2]
[331550265,1720488632813,-527.322701,0.00012946,2]
[331550266,1720488632825,-1240.20368389,0.00012946,2]
[331550267,1720488632835,-198.47,0.00013027,2]
[331550268,1720488632844,-150.99,0.00013027,2]
[331550269,1720488632854,-198.47,0.00013092,2]
[331550270,1720488632863,-579.36,0.00013122,2]
[331550271,1720488632873,-366.025366,0.00013128,2]
[331550272,1720488632883,-2829.21023985,0.00013128,2]
[331550274,1720488632892,-183.77,0.00013253,2]
[331550275,1720488632901,-261.52,0.00013397,2]
[331550277,1720488632911,-250.0,0.00013406,2]
[331550279,1720488632920,-155.34104736,0.00013472,2]
[331550282,1720488632930,-246.04675691,0.00013472,2]
[331550284,1720488632942,-245.98858821,0.00013472,2]
[331550286,1720488632951,-528.93489931,0.00013516,2]
[331550287,1720488632961,-202.01806079,0.00013516,2]
[331550288,1720488632970,-195.9976809,0.00013516,2]
[331550289,1720488632985,-729.56922829,0.00013516,2]
[331550290,1720488632994,-155.20249672,0.00013516,2]
[331550291,1720488633003,-303.57548573,0.00013543,2]
[331550292,1720488633012,-155.0,0.00013543,2]
[331550293,1720488633022,-156.4774398,0.00013543,2]
[331550294,1720488633031,-250.47708247,0.00013543,2]
[331550295,1720488633040,-159.58395691,0.00013574,2]
[331550296,1720488633050,-242.12431802,0.00013574,2]
[331550297,1720488633059,-2377.03282187,0.00013574,2]
[331550298,1720488633069,-155.00000002,0.00013574,2]
[331550300,1720488633078,-155.23483385,0.00013574,2]
[331550302,1720488633088,-155.10357011,0.00013574,2]
[331550304,1720488633097,-981.02398809,0.00013574,2]
[331550305,1720488633106,-174.11546228,0.00013574,2]
[331550306,1720488633115,-155.18956671,0.00013574,2]
[331550307,1720488633125,-1003.01662886,0.00013698,2]
[331550308,1720488633134,-25530.17,0.00013699,2]
[331550309,1720488633144,-1293.7,0.00013699,2]
[331550310,1720488633154,-1267.21,0.00013699,2]
[331550311,1720488633163,-250.0,0.00013699,2]
[331550312,1720488633172,-507.60736866,0.000138,2]
[331550313,1720488633181,-641.46653892,0.000138,2]
[331550314,1720488633191,-166.66666,0.0001386,2]
[331550315,1720488633200,-533.74882186,0.00013899,2]
[331550316,1720488633209,-1301.78745658,0.000139,2]
[331550317,1720488633221,-4323.25554342,0.000139,2]
[331550318,1720488633235,-174.459214,0.000139,2]
[331550319,1720488633244,-3077.7619,0.000139,2]
[331550320,1720488633253,-342.3565,0.000139,2]
[331550321,1720488633262,-1593.06542358,0.000139,2]
[331550322,1720488633274,-778.63384695,0.000139,2]
[331550323,1720488633285,-404.0,0.000139,2]
[331550324,1720488633296,-2437.14912999,0.000139,2]
[331550325,1720488633308,-876.40432098,0.000139,2]
[331550326,1720488633340,-4205.98716292,0.000139,2]
[331550327,1720488633352,-263.744,0.000139,2]
[331550328,1720488633364,-621.77146932,0.000139,2]
[331550329,1720488633375,-883.97785601,0.000139,2]
[331550330,1720488633388,-450.25,0.000139,2]
[331550331,1720488633406,-2015.29501095,0.000139,2]
[331550373,1720488638725,-475.08260056,0.00012314,2]
[331550375,1720488638736,-2100.04360219,0.00013574,2]
[331550377,1720488638746,-47470.33043753,0.000139,2]
[331550379,1720488638758,-384.30158449,0.000139,2]
[331550382,1720488638777,-405.79384232,0.000139,2]
[331550384,1720488638789,-2125.34602237,0.000139,2]
[331550385,1720488638801,-12472.14227169,0.000139,2]
[331550386,1720488638813,-39633.7202209,0.000139,2]
[331550387,1720488638823,-164.95819459,0.000139,2]
[331550388,1720488638832,-336.13043076,0.000139,2]
[331550389,1720488638841,-7500.0,0.000139,2]
[331550390,1720488638851,-275.0502675,0.000139,2]
[331550391,1720488638861,-331.04099143,0.000139,2]
[331550392,1720488638870,-185.2355957,0.000139,2]
[331550393,1720488638880,-2676.82821218,0.0001398,2]
[331550394,1720488638889,-198.49354233,0.0001399,2]
[331550395,1720488638899,-500.0,0.00013999,2]
[331550396,1720488638909,-371.21806706,0.00013999,2]
[331550397,1720488638918,-323.18118834,0.00013999,2]
[331550398,1720488638928,-4471.2066748,0.00013999,2]
[331550399,1720488638938,-16051.7648701,0.00013999,2]
[331550400,1720488638948,-209.25515647,0.00013999,2]
[331550401,1720488638958,-159.16302927,0.00013999,2]
[331550402,1720488638968,-277.13197885,0.00013999,2]
[331550403,1720488638977,-24492.33537201,0.00014,2]
[331550404,1720488638990,-2879660.06117929,0.00014,2]
[331550405,1720488639000,-155.91835179,0.00014,2]
[331550406,1720488639010,-155.31338736,0.00014,2]
[331550407,1720488639019,-75794.8847645,0.00014009,2]
[331550409,1720488639029,-297.60689096,0.00014099,2]
[331550411,1720488639040,-155.0,0.00014099,2]
[331550413,1720488639050,-420.0,0.00014197,2]
[331550416,1720488639061,-163.28,0.00014284,2]
[331550419,1720488639071,-308.951889,0.00014521,2]
[331550422,1720488639081,-173.18,0.00014555,2]
[331550424,1720488639091,-1000.0,0.00014836,2]
[331550426,1720488639102,-227.27128939,0.00014999,2]
[331550428,1720488639112,-491.0,0.00015,2]
[331550430,1720488639122,-150.33,0.00015249,2]
[331550432,1720488639131,-247.95,0.000153,2]
[331550433,1720488639140,-247.95,0.00015304,2]
[331550435,1720488639150,-247.95,0.00015308,2]
[331550437,1720488639160,-247.95,0.00015312,2]
[331550439,1720488639170,-247.95,0.00015316,2]
[331550441,1720488639180,-247.95,0.0001532,2]
[331550443,1720488639190,-247.95,0.00015324,2]
[331550445,1720488639202,-150.0,0.00015327,2]
[331550447,1720488639212,-247.95,0.00015328,2]
[331550449,1720488639223,-247.95,0.00015332,2]
[331550451,1720488639234,-247.95,0.00015336,2]
[331550453,1720488639244,-247.95,0.0001534,2]
[331550455,1720488639255,-308.951889,0.00015342,2]
[331550457,1720488639264,-247.95,0.00015344,2]
[331550459,1720488639275,-247.95,0.00015348,2]
[331550461,1720488639286,-247.95,0.00015352,2]
[331550463,1720488639296,-247.95,0.00015356,2]
[331550465,1720488639308,-247.95,0.0001536,2]
[331550467,1720488639319,-247.95,0.00015364,2]
[331550469,1720488639330,-247.95,0.00015368,2]
[331550471,1720488639340,-247.95,0.00015372,2]
[331550473,1720488639351,-247.95,0.00015376,2]
[331550475,1720488639361,-579.36,0.00015386,2]
[331550478,1720488639372,-300.0,0.00015571,2]
[331550480,1720488639382,-163.28,0.00015871,2]
[331550482,1720488639395,-213.93139768,0.00015875,2]
[331550483,1720488639415,-308.951889,0.00016164,2]
[331550486,1720488639425,-166.66667,0.0001636,2]
[331550488,1720488639436,-183.77,0.00016566,2]
[331550490,1720488639446,-1000.0,0.00016691,2]
[331550492,1720488639457,-241.81370471,0.00016699,2]
[331550494,1720488639467,-456.0,0.000168,2]
[331550496,1720488639476,-308.951889,0.00016986,2]
[331550498,1720488639487,-150.33,0.00017428,2]
[331550500,1720488639498,-163.28,0.00017458,2]
[331550502,1720488639509,-579.36,0.0001765,2]
[331550504,1720488639520,-507.6073686,0.00017735,2]
[331550505,1720488639530,-641.46653887,0.00017735,2]
[331550507,1720488639541,-308.951889,0.00017808,2]
[331550509,1720488639551,-150.43917273,0.0001785,2]
[331550511,1720488639561,-390777.580591,0.000179,2]
[331550513,1720488639572,-370.90972778,0.00018,2]
[331550515,1720488639582,-1000.0,0.00018545,2]
[331550517,1720488639592,-308.951889,0.0001863,2]
[331550520,1720488639603,-161.18,0.00018849,30]
[331550522,1720488639612,-166.66667,0.0001886,2]
[331550524,1720488639622,-166.12,0.000189,2]
[331550526,1720488639632,-166.12,0.000189,2]
[331550528,1720488639642,-5000.0,0.00019,2]
[331550530,1720488639652,-853.04560146,0.00019,2]
[331550532,1720488639662,-163.28,0.00019045,2]
[331550534,1720488639673,-2720.66141359,0.00019177,2]
[331550536,1720488639683,-790.35062674,0.00019177,2]
[331550538,1720488639692,-297.10016383,0.00019177,2]
[331550540,1720488639702,-304.65330378,0.00019299,2]
[331550542,1720488639712,-308.951889,0.00019452,2]
[331550544,1720488639721,-2500.0,0.000195,2]
[331550545,1720488639732,-150.33,0.00019606,2]
[331550548,1720488639742,-5794.53696799,0.00019758,2]
[331550550,1720488639752,-183.77,0.00019879,2]
[331550552,1720488639762,-579.36,0.00019914,2]
[331550554,1720488639772,-1306.07094144,0.0002,2]
[331550555,1720488639781,-2251.8467033,0.0002,2]
[331550557,1720488639791,-258.0,0.0002,2]
[331550560,1720488639801,-3175.11825841,0.0002,2]
[331550562,1720488639811,-3059.57279575,0.0002,4]
[331550564,1720488639820,-6284.03762925,0.0002,2]
[331550565,1720488639830,-155.0,0.0002,2]
[331550567,1720488639840,-616.63744864,0.0002,2]
[331550569,1720488639850,-868.44671232,0.0002,2]
[331550572,1720488639860,-570.0,0.0002008,2]
[331550574,1720488639870,-717.16761484,0.0002012,2]
[331550576,1720488639880,-2020.40384023,0.000202,2]
[331550578,1720488639889,-188.35612588,0.00020222,2]
[331550580,1720488639899,-336.13043075,0.000204,2]
[331550581,1720488639909,-1000.0,0.000204,2]
[331550583,1720488639919,-2376.0,0.00020664,2]
[331550585,1720488639928,-1294.0,0.00020664,2]
[331550587,1720488639938,-150.0,0.00020664,2]
[331550589,1720488639949,-548.0,0.00020664,2]
[331550591,1720488639960,-283.0,0.00020664,2]
[331550593,1720488639970,-326.2,0.00020664,2]
[331550595,1720488639980,-291.827,0.00020664,2]
[331550597,1720488639989,-5180.0,0.00020664,2]
[331550598,1720488639999,-1669.629,0.00020664,2]
[331550599,1720488640009,-1202.392,0.00020664,2]
[331550600,1720488640019,-38269.0,0.00020664,2]
[331550601,1720488640029,-450.711,0.00020664,2]
[331550602,1720488640039,-444.922,0.00020664,2]
[331550603,1720488640049,-816.444,0.00020664,2]
[331550604,1720488640059,-212.32330448,0.000209,2]
[331550605,1720488640069,-225.43058031,0.00021,2]
[331550606,1720488640079,-13388.09652244,0.00021,2]
[331550607,1720488640089,-465.66974285,0.00021,2]
[331550608,1720488640099,-166.66666,0.0002136,2]
[331550609,1720488640110,-180.0,0.00021397,2]
[331550610,1720488640122,-161.49,0.00021644,2]
[331550611,1720488640132,-152.93,0.00021644,2]
[331550612,1720488640142,-455.23,0.00021644,2]
[331550613,1720488640152,-507.6073686,0.0002167,2]
[331550614,1720488640163,-641.46653887,0.0002167,2]
[331550615,1720488640174,-327.74,0.00021918,2]
[331550616,1720488640184,-834.53,0.00021918,2]
[331550617,1720488640194,-791.51012396,0.00022,2]
[331550618,1720488640204,-617.64377958,0.00022,2]
[331550619,1720488640215,-579.36,0.00022178,2]
[331550620,1720488640225,-2500.0,0.000222,2]
[331550621,1720488640239,-3097.67805047,0.00022215,2]
[331550622,1720488640249,-158.37947989,0.00022215,2]
[331550623,1720488640260,-1000.0,0.00022255,2]
[331550624,1720488640271,-150.0,0.0002271,6]
[331550625,1720488640282,-366.10477922,0.00022973,2]
[331550626,1720488640292,-150.0,0.00023656,8]
[331550627,1720488640302,-352.227,0.00023664,2]
[331550628,1720488640313,-3545.893,0.00023664,2]
[331550629,1720488640323,-166.66667,0.0002386,2]
[331550630,1720488640334,-1927.33599983,0.00023999,2]
[331550631,1720488640344,-500.0,0.00023999,2]
[331550632,1720488640355,-500.0,0.00023999,2]
[331550633,1720488640366,-500.0,0.00023999,2]
[331550634,1720488640377,-579.36,0.00024442,2]
[331550635,1720488640387,-150.0,0.00024642,10]
[331550636,1720488640398,-2500.0,0.000249,2]
[331550637,1720488640415,-932.12365454,0.00025,2]
[331550638,1720488640425,-326.60332768,0.00025,2]
[331550639,1720488640436,-1984.09775163,0.00025,2]
[331550640,1720488640447,-669.21960628,0.00025,30]
[331550641,1720488640459,-155.0,0.00025,2]
[331550642,1720488640470,-225.60259739,0.00025,2]
[331550643,1720488640485,-200.0,0.00025,2]
[331550644,1720488640495,-1000.0,0.00025205,2]
[331550645,1720488640505,-507.6073686,0.00025605,2]
[331550646,1720488640515,-641.46653887,0.00025605,2]
[331550647,1720488640524,-179.79559481,0.000259,2]
[331550648,1720488640538,-150.0,0.00026079,2]
[331550649,1720488640549,-3100.0,0.00026122,2]
[331550650,1720488640560,-1041.94417402,0.00026262,2]
[331550651,1720488640570,-1137.54536784,0.00026262,2]
[331550652,1720488640581,-166.66667,0.0002636,2]
[331550653,1720488640591,-3100.0,0.0002667,2]
[331550654,1720488640602,-579.36,0.00026706,2]
[331550655,1720488640613,-1164.50972793,0.00026798,88]
[331550656,1720488640624,-155.0,0.00026798,2]
[331550657,1720488640636,-24661.40796821,0.00026798,2]
[331550658,1720488640647,-339.81835002,0.00026798,7]
[331550659,1720488640658,-550.93345898,0.00026798,2]
[331550660,1720488640669,-448.43744001,0.00026798,2]
[331550661,1720488640680,-883.15780805,0.00026798,7]
[331550662,1720488640691,-336.13043075,0.000269,2]
[331550663,1720488640702,-155.0,0.00027,2]
[331550664,1720488640712,-7185.62384011,0.00027,2]
[331550665,1720488640724,-3100.0,0.00027218,2]
[331550666,1720488640736,-200.0,0.00027397,60]
[331550667,1720488640747,-5491.65,0.00027397,10]
[331550668,1720488640758,-150.570609,0.00027575,2]
[331550669,1720488640770,-1996.0,0.000277,2]
[331550670,1720488640780,-161.49,0.00027714,2]
[331550671,1720488640791,-455.23,0.00027714,2]
[331550672,1720488640802,-3100.0,0.00027766,2]
[331550673,1720488640812,-1000.0,0.00028,7]
[331550674,1720488640822,-3100.0,0.00028862,2]
[331550675,1720488640832,-579.36,0.0002897,2]
[331550676,1720488640842,-20095.72275799,0.00029109,3]
[331550677,1720488640852,-1000.0,0.00029136,2]
[331550678,1720488640862,-500.0,0.00029136,2]
[331550679,1720488640872,-500.0,0.00029136,2]
[331550680,1720488640882,-185.23559569,0.000294,2]
[331550681,1720488640892,-507.6073686,0.0002954,15]
[331550682,1720488640902,-641.46653887,0.0002954,15]
[331550683,1720488640912,-1000.0,0.00029684,2]
[331550684,1720488640923,-216.881853,0.00029779,2]
[331550685,1720488640933,-854.69,0.00029779,2]
[331550686,1720488640943,-854.69,0.00029779,2]
[331550687,1720488640954,-854.69,0.00029779,2]
[331550688,1720488640966,-425.3,0.00029779,2]
[331550689,1720488640976,-3100.0,0.00029958,2]
[331550690,1720488640988,-2000.0,0.0003,120]
[331550691,1720488640998,-545.11825138,0.0003,30]
[331550692,1720488641009,-689.64424061,0.0003,4]
[331550693,1720488641019,-1325.33,0.0003,7]
[331550694,1720488641029,-1000.0,0.0003,7]
[331550695,1720488641039,-673.73201962,0.0003,2]
[331550696,1720488641048,-484.64149208,0.0003,2]
[331550697,1720488641058,-1155.12473384,0.0003,2]
[331550698,1720488641068,-188.0,0.00030082,120]
[331550699,1720488641078,-200.0,0.00030137,60]
[331550700,1720488641088,-151.070907,0.00030148,83]
[331550701,1720488641098,-1086.96,0.00030151,2]
[331550702,1720488641107,-1000.0,0.00030232,10]
[331550703,1720488641117,-500.0,0.00030232,10]
[331550704,1720488641127,-500.0,0.00030232,10]
[331550705,1720488641137,-1996.53041444,0.000304,2]
[331550706,1720488641147,-151.070907,0.00030748,93]
[331550707,1720488641156,-419.31,0.00030755,2]
[331550708,1720488641166,-419.31,0.00030755,2]
[331550709,1720488641176,-1000.0,0.0003078,10]
[331550710,1720488641185,-1016.52245024,0.00031,4]
[331550711,1720488641194,-528.24,0.00031012,2]
[331550712,1720488641204,-3100.0,0.00031054,10]
[331550713,1720488641213,-151.070907,0.00031148,84]
[331550714,1720488641223,-579.36,0.00031234,2]
[331550715,1720488641234,-1000.0,0.00031328,10]
[331550716,1720488641243,-500.0,0.00031328,10]
[331550717,1720488641253,-500.0,0.00031328,10]
[331550718,1720488641263,-854.69,0.00031667,2]
[331550719,1720488641273,-854.69,0.00031667,2]
[331550720,1720488641284,-862.15,0.00031667,2]
[331550721,1720488641293,-151.070907,0.00031748,94]
[331550722,1720488641304,-355.08,0.00031834,2]
[331550723,1720488641315,-630.51,0.00031834,2]
[331550724,1720488641324,-300.0,0.00031834,2]
[331550725,1720488641335,-406.87,0.00031834,2]
[331550726,1720488641345,-1000.0,0.00031876,10]
[331550727,1720488641355,-151.59,0.00031995,5]
[331550728,1720488641364,-1000.0,0.00032,120]
[331550729,1720488641374,-1000.0,0.00032,7]
[331550730,1720488641384,-2000.0,0.00032,30]
[331550731,1720488641398,-151.070907,0.00032148,85]
[331550732,1720488641417,-3100.0,0.0003215,10]
[331550733,1720488641427,-545.3132,0.00032269,3]
[331550734,1720488641436,-854.69,0.00032301,2]
[331550735,1720488641446,-500.0,0.00032424,10]
[331550736,1720488641456,-500.0,0.00032424,10]
[331550737,1720488641466,-164.97,0.00032673,2]
[331550738,1720488641476,-150.0,0.00032673,2]
[331550739,1720488641489,-1205.92,0.00032673,2]
[331550740,1720488641499,-151.070907,0.00032748,95]
[331550741,1720488641508,-200.0,0.00032877,60]
[331550742,1720488641518,-168.88,0.00032877,30]
[331550743,1720488641527,-1000.0,0.00032972,10]
[331550744,1720488641537,-1000.0,0.00033,120]
[331550745,1720488641547,-519.0,0.00033,120]
[331550746,1720488641557,-150.0,0.00033,14]
[331550747,1720488641566,-1000.0,0.00033,120]
[331550748,1720488641576,-151.070907,0.00033148,86]
[331550749,1720488641585,-327.74,0.00033151,120]
[331550750,1720488641595,-834.53,0.00033151,120]
[331550751,1720488641605,-152.93,0.00033178,2]
[331550752,1720488641615,-152.0,0.00033205,3]
[331550753,1720488641624,-3100.0,0.00033246,10]
[331550754,1720488641634,-336.13043075,0.000334,5]
[331550755,1720488641644,-151.070907,0.00033448,83]
[331550756,1720488641654,-507.6073686,0.00033475,15]
[331550757,1720488641664,-641.46653887,0.00033475,15]
[331550758,1720488641674,-579.36,0.00033497,2]
[331550759,1720488641684,-153.53,0.000335,31]
[331550760,1720488641694,-153.53,0.000335,31]
[331550761,1720488641703,-153.53,0.000335,31]
[331550762,1720488641713,-153.53,0.000335,31]
[331550763,1720488641723,-153.53,0.000335,31]
[331550764,1720488641738,-153.53,0.000335,31]
[331550765,1720488641748,-153.53,0.000335,31]
[331550766,1720488641758,-153.53,0.000335,31]
[331550767,1720488641768,-319.53561571,0.0003352,10]
[331550768,1720488641778,-500.0,0.0003352,10]
[331550769,1720488641789,-1708.9,0.00033651,2]
[331550770,1720488641799,-150.0,0.00033726,2]
[331550771,1720488641809,-150.0,0.00033726,2]
[331550772,1720488641818,-150.0,0.00033726,2]
[331550773,1720488641828,-151.070907,0.00033748,82]
[331550774,1720488641839,-151.070907,0.00033748,96]
[331550775,1720488641848,-161.49,0.00033785,2]
[331550776,1720488641858,-455.23,0.00033785,2]
[331550777,1720488641868,-300.0,0.000338,2]
[331550778,1720488641877,-1000.0,0.00034,120]
[331550779,1720488641886,-1000.0,0.00034068,10]
[331550780,1720488641895,-522.03,0.00034082,2]
[331550781,1720488641905,-151.070907,0.00034148,87]
[331550782,1720488641914,-1000.0,0.000342,120]
[331550783,1720488641924,-3100.0,0.00034342,10]
[331550784,1720488641933,-151.070907,0.00034448,84]
[331550785,1720488641942,-150.0,0.00034548,10]
[331550786,1720488641951,-500.0,0.00034616,10]
[331550787,1720488641961,-151.070907,0.00034748,83]
[331550788,1720488641970,-151.070907,0.00034748,97]
[331550789,1720488641981,-251.39807527,0.00035,30]
[331550790,1720488641991,-1000.0,0.00035,7]
[331550791,1720488642001,-1000.0,0.00035,120]
[331550792,1720488642010,-150.0,0.00035139,120]
[331550793,1720488642019,-151.070907,0.00035148,88]
[331550794,1720488642028,-1000.0,0.00035164,10]
[331550795,1720488642037,-150.0,0.00035215,120]
[331550796,1720488642046,-3100.0,0.00035438,10]
[331550797,1720488642055,-151.070907,0.00035448,85]
[331550798,1720488642064,-150.0,0.00035504,120]
[331550799,1720488642073,-152.0,0.00035532,4]
[331550800,1720488642082,-279.28371559,0.00035616,60]
[331550801,1720488642092,-500.0,0.00035712,10]
[331550802,1720488642101,-151.070907,0.00035748,84]
[331550803,1720488642111,-151.070907,0.00035748,98]
[331550804,1720488642120,-579.36,0.00035761,2]
[331550805,1720488642129,-150.0,0.00035826,120]
[331550806,1720488642138,-150.0,0.00035973,120]
[331550807,1720488642148,-1000.0,0.00036,120]
[331550808,1720488642157,-1000.0,0.00036,120]
[331550809,1720488642167,-151.070907,0.00036148,89]
[331550810,1720488642176,-2226.17466465,0.00036186,2]
[331550811,1720488642185,-1000.0,0.0003626,10]
[331550812,1720488642595,-150.0,0.0003626,120]
[331550813,1720488642605,-151.070907,0.00036448,86]
[331550814,1720488642615,-3100.0,0.00036534,10]
[331550815,1720488642624,-150.0,0.00036587,120]
[331550816,1720488642634,-150.0,0.00036648,120]
[331550817,1720488642643,-300.0,0.0003674,2]
[331550818,1720488642652,-151.070907,0.00036748,85]
[331550819,1720488642662,-151.070907,0.00036748,99]
[331550820,1720488642671,-40173.0,0.00036788,2]